Workbook

Sheet 佳奥
A1: 2025年月份佳奥产品组装登记表
A2: 日期 | B2: 项目 | C2: 产品编码 | D2: 数量 | E2: 对应产品编码 | F2: 包装员
A3: 2024-06-01 | B3: 其它 | C3: 协助配发 | D3: 0 | E3: 云侠，冯友，文雅8：30--17:30 | F3: 集体
A4: 2024-06-01 | B4: 其它 | C4: 214002J0117MS1 | D4: 228 | E4: 214002J0117MS1-WT+214002J0117MS1-LX电动U枕，需要调节，检验电动情况等 | F4: 集体
A5: 2024-06-02 | B5: 其他 | C5: 214002J0117MS1 | D5: 300 | E5: 214002J0117MS1-WT+214002J0117MS1-LX电动U枕，需要调节，检验电动情况等 | F5: 集体
A6: 2024-06-03 | B6: 其他 | C6: 214002J0117MS1 | D6: 143 | E6: 214002J0117MS1-WT+214002J0117MS1-LX电动U枕，需要调节，检验电动情况等 | F6: 集体
A7: 2024-06-03 | B7: 产品组装I | C7: J08B06AS1 | D7: 100 | E7: J08B06AS1WT+J08B06BS1-LX | F7: 集体
A8: 2024-06-03 | B8: 其他 | C8: 开会 | F8: 集体
A9: 2024-06-04 | B9: 产品组装I | C9: J08B06AS1 | D9: 500 | E9: J08B06AS1WT+J08B06BS1-LX | F9: 集体
A10: 2024-06-05 | B10: 产品组装I | C10: J17B12AS9 | D10: 420 | E10: J17B12AS9WT+J17B06AS9NX | F10: 集体
A11: 2024-06-05 | B11: 产品组装I | C11: J17B12AR4 | D11: 285 | E11: J17B12AR4WT+J17B06AS9NX | F11: 集体
A12: 2024-06-05 | B12: 产品组装I | C12: J08B07BS1 | D12: 500 | E12: J08B02S1+J08B07BS1-LX | F12: 集体
A13: 2024-06-05 | B13: 产品组装II | C13: 240104J0100MS9 | D13: 59 | E13: 240104J0100MS9-WT+240104J0100MG1隐形拉链 | F13: 集体
A14: 2024-06-05 | B14: 产品组装I | C14: J08B03BS1 | D14: 100 | E14: J08B02S1+J08B07BS1-LX | F14: 集体
A15: 2024-05-01 | B15: 产品组装I | C15: J08B06AS1 | D15: 100 | E15: J08B06AS1WT+J08B06BS1-LX
A16: 2024-05-04 | B16: 产品组装I | C16: J08B02AS1 | D16: 96 | E16: J08B02S1+J08B06BS1-LX
A17: 2024-05-04 | B17: 产品组装IV | C17: 220606J0100MR4 | D17: 243 | E17: 220606J0100MR4-WT+拆J06D01AS1+小枕，隐形拉链
A18: 2024-05-05 | B18: 产品组装I | C18: J08B02AS1 | D18: 99 | E18: J08B02S1+J08B06BS1-LX
A19: 2024-05-05 | B19: 封口包装 | C19: 230606J0100MB5-NX | D19: 120 | E19: 裸心套内套封口等
A20: 2024-05-06 | B20: 产品组装I | C20: 230710J1500GB3 | D20: 100 | E20: 产品返工，非组装原因
A21: 2024-05-06 | B21: 产品组装I | C21: 210703J1500BGX | D21: 58 | E21: 外套报废，拆解成品
A22: 2024-05-06 | B22: 产品组装I | C22: J17B12AS9 | D22: 120 | E22: J17B12AS9WT+J17B06AS9NX
A23: 2024-05-06 | B23: 封口包装 | C23: 230606J0100MB5-NX | D23: 90 | E23: 裸心套内套封口等
A24: 2024-05-06 | B24: 其它 | C24: 232401JK0100MB11 | D24: 25 | E24: 工厂来货返修，加固吊带
A25: 2024-05-06 | B25: 产品组装II | C25: 230702J0100MR4 | D25: 250 | E25: 230702J0100MB2-WT(无拉头）+210709J1500MS1-NX
A26: 2024-05-06 | B26: 产品组装II | C26: 230702J0200MS9 | D26: 100 | E26: 230702J0200MS9-WT（无拉头）+210709J1500MS1-NX
A27: 2024-05-07 | B27: 产品组装II | C27: 230709J0100MB2 | D27: 92 | E27: 230709J0100MB2-WT+210709J1500MS1-NX 外套无拉头
A28: 2024-05-07 | B28: 产品组装II | C28: 230702J0200MS9 | D28: 50 | E28: 230702J0200MS9-WT（无拉头）+210709J1500MS1-NX
A29: 2024-05-07 | B29: 产品组装I | C29: J17B12AR4 | D29: 201 | E29: J17B12AR4WT+J17B06AS9NX
A30: 2024-05-07 | B30: 产品组装I | C30: J17B12AS9 | D30: 487 | E30: J17B12AS9WT+J17B06AS9NX
A31: 2024-05-07 | B31: 产品组装I | C31: J08B02AS1 | D31: 200 | E31: J08B02S1+J08B06BS1-LX
A32: 2024-05-07 | B32: 产品组装I | C32: J08B02BS1 | D32: 300 | E32: J08B02S1+J08B06BS1-LX
A33: 2024-05-07 | B33: 产品组装I | C33: J06A14BS1 | D33: 30 | E33: 成品拆解
A34: 2024-05-07 | B34: 产品组装I | C34: J08B06AS1 | D34: 612 | E34: J08B06AS1WT+J08B06BS1-LX
A35: 2024-05-08 | B35: 产品组装I | C35: J08B07BS1 | D35: 500 | E35: J08B06AS1WT+J08B07BS1-LX
A36: 2024-05-08 | B36: 产品组装II | C36: J02A04CW2 | D36: 170 | E36: J02A04CW2WT+J02A04CW2NX隐形拉链
A37: 2024-05-08 | B37: 产品组装I | C37: J08B06AS1 | D37: 188 | E37: J08B06AS1WT+J08B06BS1-LX
A38: 2024-05-08 | B38: 产品组装I | C38: J08B06BS1 | D38: 432 | E38: J08B06AS1WT+J08B06BS1-LX
A39: 2024-05-08 | B39: 其它 | C39: 整理及协助 | D39: 0 | E39: 场地及纸箱整理等
A40: 2024-05-09 | B40: 其它 | C40: 场地整理 | D40: 0 | E40: 因子，星辰半成品分类及码放等
A41: 2024-05-09 | B41: 其它 | C41: 210801J0100MS8-NX | D41: 52 | E41: 拆床头靠垫芯子回弹
A42: 2024-05-09 | B42: 其它 | C42: 210801J0100SS8-NX | D42: 150 | E42: 拆床头靠垫芯子回弹
A43: 2024-05-09 | B43: 其它 | C43: 协助配发 | D43: 0 | E43: 芙蓉，文雅8：30-18:00，因子，星辰14:00—18:00, 笑鱼14:00-16:30
A44: 2024-05-10 | B44: 产品组装IV | C44: 220702J1511BS1 | D44: 200 | E44: 220702J1511BS1-WT+220702J1511BB3拆成品
A45: 2024-05-10 | B45: 产品组装IV | C45: 210801J0100MS8 | D45: 52 | E45: 床头靠垫，三个部位
A46: 2024-05-10 | B46: 其它 | C46: 协助配发 | D46: 0 | E46: 芙蓉，因子8：30-20:00，文雅，星辰17:30—20:00
A47: 2024-05-11 | B47: 产品组装I | C47: 210712J0100MS9 | D47: 72 | E47: 拆成品 | F47: 集体
A48: 2024-05-11 | B48: 产品组装I | C48: J07B08BB7 | D48: 180 | E48: 拆成品，拆完组装发现规格不符 | F48: 集体
A49: 2024-05-11 | B49: 产品组装I | C49: J07B08AS1 | D49: 140 | E49: 拆成品，拆完组装发现规格不符 | F49: 集体
A50: 2024-05-11 | B50: 定制床垫 | C50: J27DZ001 | D50: 1 | E50: 160*65*5 | F50: 集体
A51: 2024-05-11 | B51: 其它 | C51: 协助配发 | D51: 0 | E51: 星辰、文雅8：30---20:00，芙蓉、因子、白象17:30-20:00 | F51: 集体
A52: 2024-05-11 | B52: 产品组装II | C52: J07B08AS1 | D52: 140 | E52: J07B08AS1拆下的外套+J07B08BB7拆下的芯子，更换吊牌等 | F52: 集体
A53: 2024-05-11 | B53: 产品组装III | C53: J07B08AB7 | D53: 72 | E53: J07B08AS1拆下的芯子+J07B08BB7拆下的外套，更换吊牌等 | F53: 集体
A54: 2024-05-11 | B54: 产品组装III | C54: J07B08BS1 | D54: 110 | E54: J07B08AS1拆下的外套+J07B08BB7拆下的芯子，更换吊牌等 | F54: 集体
A55: 2024-05-11 | B55: 产品组装I | C55: J07B02BS1 | D55: 72 | E55: J07B02BS1WT+J07B08BB7拆下的芯子 | F55: 集体
A56: 2024-05-11 | B56: 产品组装IV | C56: 210801J0100MS8 | D56: 10 | E56: 床头靠垫，三个部位 | F56: 集体
A57: 2024-05-12 | B57: 产品组装II | C57: 210801J0100SS8 | D57: 129 | E57: 床头靠垫，仅三角部位 | F57: 集体
A58: 2024-05-12 | B58: 产品组装I | C58: J08B06AS1 | D58: 454 | E58: J08B06AS1WT+J08B01-A | F58: 集体
A59: 2024-05-12 | B59: 产品组装I | C59: J08B03AS1 | D59: 250 | E59: J08B02S1+J08B07BS1-LX | F59: 集体
A60: 2024-05-12 | B60: 产品组装II | C60: 230702J0100MR4 | D60: 200 | E60: 230702J0100MR4-WT（无拉头）+210709J1500MS1-NX | F60: 集体
A61: 2024-05-12 | B61: 产品组装II | C61: 230702J0200MS9 | D61: 100 | E61: 230702J0200MS9-WT（无拉头）+210709J1500MS1-NX | F61: 集体
A62: 2024-05-12 | B62: 其它 | C62: 协助配发 | D62: 0 | E62: 因子、白象08:30-17:30 | F62: 集体
A63: 2024-05-13 | B63: 产品组装I | C63: J08B03AS1 | D63: 250 | E63: J08B02S1+J08B07BS1-LX | F63: 集体
A64: 2024-05-13 | B64: 产品组装III | C64: 230702J1200MS9 | D64: 232 | E64: 230702J1200MS9-WT（穿吊牌）+230701J1200MS11(拆成品） | F64: 集体
A65: 2024-05-13 | B65: 产品组装IV | C65: 230613J0100MS8 | D65: 87 | E65: 床头靠垫，三个部位 | F65: 集体
A66: 2024-05-13 | B66: 产品组装II | C66: 210801J0100SS8 | D66: 50 | E66: 床头靠垫，仅三角部位 | F66: 集体
A67: 2024-05-13 | B67: 产品组装II | C67: 210701J0300SS1 | D67: 150 | E67: 210701J0300SS1-WT（隐形拉链）+210701J0300SS3 | F67: 集体
A68: 2024-05-13 | B68: 产品组装II | C68: 240101S0100MS9 | D68: 180 | E68: 240101S0100MS9-WT+240101S0100MS9-NX隐形拉链 | F68: 集体
A69: 2024-05-13 | B69: 其他 | C69: 送货 | D69: 30 | E69: 送货30箱，0.15元/箱 | F69: 集体
A70: 2024-05-13 | B70: 其它 | C70: 协助配发 | D70: 0 | E70: 因子、白象08:30-19:30 | F70: 集体
A71: 2024-05-14 | B71: 产品组装II | C71: 240101S0100MS9 | D71: 777 | E71: 240101S0100MS9-WT+240101S0100MS9-NX隐形拉链 | F71: 集体
A72: 2024-05-14 | B72: 其它 | C72: 协助配发 | D72: 0 | E72: 文雅、白象08:30-20:00，星辰、芙蓉、因子17:30-20:00 | F72: 集体
A73: 2024-05-15 | B73: 产品组装III | C73: 230702J1200MS9 | D73: 281 | E73: 230702J1200MS9-WT（穿吊牌）+230701J1200MS11(拆成品） | F73: 集体
A74: 2024-05-15 | B74: 产品组装I | C74: 230701J1200MS11 | D74: 60 | E74: 芯子套EVA袋，穿吊牌 | F74: 集体
A75: 2024-05-15 | B75: 其它 | C75: 协助配发 | D75: 0 | E75: 因子、芙蓉08:30-20:00，其他3人17:30-20:00 | F75: 集体
A76: 2024-05-16 | B76: 产品组装IV | C76: 240104J0100LG1 | D76: 60 | E76: 云朵深睡枕加吊牌，洗标织唛标 | F76: 集体
A77: 2024-05-16 | B77: 产品组装III | C77: 240605J0108MB1 | D77: 198 | E77: 240605J0108MB1-ZT+拆230609J0100M1R4小枕拉链有问题，耗时耗力 | F77: 集体
A78: 2024-05-16 | B78: 其它 | C78: 协助配发 | D78: 0 | E78: 文雅，星辰09:30-17:30 | F78: 集体
A79: 2024-05-17 | B79: 其它 | C79: 214002J0117MS1 | D79: 50 | E79: 214002J0117MS1-WT+214002J0117MS1-LX电动U枕，需要调节等 | F79: 集体
A80: 2024-05-17 | B80: 产品组装III | C80: 240605J0108MB7 | D80: 199 | E80: 240605J0108MB1-ZT+拆230609J0100M1R4小枕拉链有问题，耗时耗力 | F80: 集体
A81: 2024-05-17 | B81: 产品组装I | C81: J08B07BS1 | D81: 150 | E81: J08B06AS1WT+J08B07BS1-LX | F81: 集体
A82: 2024-05-17 | B82: 定制床垫 | C82: J27DZ004 | D82: 1 | E82: 120*175*10cm | F82: 集体
A83: 2024-05-17 | B83: 其它 | C83: 协助配发 | D83: 0 | E83: 文雅，星辰08:30-20:00 | F83: 集体
A84: 2024-05-18 | B84: 产品组装I | C84: J08B07BS1 | D84: 358 | E84: J08B06AS1WT+J08B07BS1-LX | F84: 集体
A85: 2024-05-18 | B85: 产品组装I | C85: J08B06AS1 | D85: 650 | E85: J08B06AS1WT+J08B06BS1-LX | F85: 集体
A86: 2024-05-18 | B86: 产品组装II | C86: 170701J1511BS4 | D86: 30 | E86: 170701J1511GS4-WT(换吊牌）+J08B07BS1-LX | F86: 集体
A87: 2024-05-19 | B87: 产品组装I | C87: J08B06AS1 | D87: 153 | E87: J08B06AS1WT+J08B06BS1-LX | F87: 集体
A88: 2024-05-19 | B88: 产品组装II | C88: 170701J1511BS4 | D88: 170 | E88: 170701J1511GS4-WT(换吊牌）+J08B07BS1-LX | F88: 集体
A89: 2024-05-19 | B89: 产品组装IV | C89: 190601J0117MS1 | D89: 150 | E89: 190601J0117MS1-WT+J06D01AS1NX等 加热小枕隐形拉链 | F89: 集体
A90: 2024-05-19 | B90: 产品组装II | C90: 240104J0100LS9 | D90: 100 | E90: 240104J0100LS9-WT+240104J0100LG1 | F90: 集体
A91: 2024-05-20 | B91: 产品组装III | C91: J24A15AS1 | D91: 550 | E91: 大客户产品更换专用织唛标 | F91: 集体
A92: 2024-05-20 | B92: 产品组装II | C92: 230702J1200MS9 | D92: 10 | E92: 去配发库位拆成品 | F92: 集体
A93: 2024-05-20 | B93: 其它 | C93: 协助配发 | D93: 0 | E93: 芙蓉，白象08:30-20:00 | F93: 集体
A94: 2024-05-21 | B94: 产品组装IV | C94: J06A22AB7 | D94: 7 | E94: 床头靠垫更换洗标，需拆装 | F94: 集体
A95: 2024-05-21 | B95: 产品组装II | C95: 210703J1500GS1 | D95: 165 | E95: 230704J0100GS1更换吊牌，彩标等 | F95: 集体
A96: 2024-05-21 | B96: 产品组装III | C96: J24A15AS1 | D96: 200 | E96: 大客户产品更换专用织唛标 | F96: 集体
A97: 2024-05-21 | B97: 其它 | C97: 协助配发 | D97: 0 | E97: 文雅，星辰08:30-20:00，其他人17:00-20:00 | F97: 集体
A98: 2024-05-22 | B98: 其它 | C98: 214002J0117MS1 | D98: 150 | E98: 214002J0117MS1-WT+214002J0117MS1-LX电动U枕，需要调节等 | F98: 集体
A99: 2024-05-22 | B99: 产品组装I | C99: J17B14AS9 | D99: 300 | E99: J17B14AS9WT+J17B07AS9NX | F99: 集体
A100: 2024-05-22 | B100: 其它 | C100: 协助配发 | D100: 0 | E100: 因子，芙蓉08:30-20:30 | F100: 集体
A101: 2024-05-23 | B101: 产品组装II | C101: 210701J0300SS1 | D101: 112 | E101: 210701J0300SS1-WT（隐形拉链）+210701J0300SS3 | F101: 集体
A102: 2024-05-23 | B102: 其它 | C102: 协助配发 | D102: 0 | E102: 白象，星辰，文雅08:30-20:00 | F102: 集体
A103: 2024-05-24 | B103: 产品组装III | C103: 220606J0100MR4 | D103: 320 | E103: 220606J0100MR4-WT+J06D01AS1-NX+小枕，隐形拉链 | F103: 集体
A104: 2024-05-24 | B104: 产品组装I | C104: J08B07BS1 | D104: 600 | E104: J08B06AS1WT+J08B07BS1-LX | F104: 集体
A105: 2024-05-24 | B105: 产品组装II | C105: 210701J0300SS1 | D105: 388 | E105: 210701J0300SS1-WT（隐形拉链）+210701J0300SS3 | F105: 集体
A106: 2024-05-24 | B106: 更换标识 | C106: J13B26AW2-WT | D106: 10 | E106: 给木子更换洗标 | F106: 集体
A107: 2024-05-24 | B107: 其它 | C107: 协助配发 | D107: 0 | E107: 星辰08:30-20:00 | F107: 集体
A108: 2024-05-25 | B108: 产品组装III | C108: 220606J0100MS9 | D108: 250 | E108: 220606J0100MR4-WT+J06D01AS1-NX+小枕，隐形拉链 | F108: 集体
A109: 2024-05-25 | B109: 产品组装III | C109: J06D01AB7 | D109: 400 | E109: 工厂来货更换成大客户产品 | F109: 集体
A110: 2024-05-25 | B110: 其它 | C110: 协助配发 | D110: 0 | E110: 星辰08:30-20:00 | F110: 集体
A111: 2024-05-26 | B111: 产品组装III | C111: 220606J0100MS9 | D111: 27 | E111: 220606J0100MR4-WT+J06D01AS1-NX+小枕，隐形拉链 | F111: 集体
A112: 2024-05-26 | B112: 产品组装I | C112: J08B06AS1 | D112: 400 | E112: J08B06AS1WT+J08B06BS1-LX | F112: 集体
A113: 2024-05-26 | B113: 产品组装III | C113: J06D01AB7 | D113: 200 | E113: 工厂来货更换成大客户产品 | F113: 集体
A114: 2024-05-26 | B114: 其它 | C114: 协助配发 | D114: 0 | E114: 星辰08:30-17:30 | F114: 集体
A115: 2024-05-27 | B115: 产品组装III | C115: J06D01AS1 | D115: 340 | E115: J06D01AS1WT(隐形拉链）+J06D01AS1NX+小枕 | F115: 集体
A116: 2024-05-27 | B116: 产品组装I | C116: J08B03AS1 | D116: 220 | E116: J08B02S1+J08B07BS1-LX | F116: 集体
A117: 2024-05-27 | B117: 产品组装I | C117: J08B06AS1 | D117: 200 | E117: J08B06AS1WT+J08B06BS1-LX | F117: 集体
A118: 2024-05-27 | B118: 其它 | C118: 协助配发 | D118: 0 | E118: 因子08:30-20:00 | F118: 集体
A119: 2024-05-28 | B119: 产品组装I | C119: J08B03AS1 | D119: 80 | E119: J08B02S1+J08B07BS1-LX | F119: 集体
A120: 2024-05-28 | B120: 产品组装II | C120: 210703J1500GS1 | D120: 128 | E120: 210703J1500GS1-WT+210703J1500GS1-NX 隐形拉链 | F120: 集体
A121: 2024-05-28 | B121: 产品组装II | C121: 210703J1500GGX | D121: 36 | E121: 210703J1500GGX-WT+210703J1500GS1-NX 隐形拉链 | F121: 集体
A122: 2024-05-28 | B122: 产品组装III | C122: 232407J0100MG10 | D122: 30 | E122: 232407J0100MG10-WT+拆232407J0100MB3 | F122: 集体
A123: 2024-05-28 | B123: 产品组装III | C123: 232407J0100MR4 | D123: 30 | E123: 232407J0100MR4-WT+拆232407J0100MB3 | F123: 集体
A124: 2024-05-28 | B124: 产品组装III | C124: J09A03AB7 | D124: 20 | E124: J09A03AB7WT+拆J09A03AS1 | F124: 集体
A125: 2024-05-28 | B125: 产品组装III | C125: J06D01AB7 | D125: 568 | E125: 工厂来货更换成大客户产品 | F125: 集体
A126: 2024-05-28 | B126: 其它 | C126: 协助配发 | D126: 0 | E126: 因子08:30-19:30 | F126: 集体
A127: 2024-05-28 | B127: 其它 | C127: 241401J0100LBS | D127: 20 | E127: 新品组装因内芯问题后拆除 | F127: 集体
A128: 2024-05-28 | B128: 产品组装III | C128: J06D01AS1 | D128: 600 | E128: J06D01AS1WT(隐形拉链）+J06D01AS1NX+小枕 | F128: 集体
A129: 2024-05-29 | B129: 产品组装I | C129: J08B03AS1 | D129: 200 | E129: J08B02S1+J08B07BS1-LX | F129: 集体
A130: 2024-05-29 | B130: 产品组装III | C130: 220606J0100MR4 | D130: 50 | E130: 220606J0100MR4-WT+J06D01AS1-NX+小枕，隐形拉链 | F130: 集体
A131: 2024-05-29 | B131: 产品组装II | C131: J09A03AS1 | D131: 159 | E131: J09A03AS1WT(隐形拉链）+J09A01AS1NX | F131: 集体
A132: 2024-05-29 | B132: 产品组装II | C132: J09A03AB7 | D132: 289 | E132: J09A03AB7-WT(隐形拉链）+J09A01AS1NX | F132: 集体
A133: 2024-05-29 | B133: 产品组装I | C133: J08B06BS1 | D133: 559 | E133: J08B06AS1WT+J08B06BS1-LX | F133: 集体
A134: 2024-05-29 | B134: 其它 | C134: 协助配发 | D134: 0 | E134: 因子08:30-20:00其他4人17:30--20:00 | F134: 集体
A135: 2024-05-30 | B135: 产品组装III | C135: 220606J0100MR4 | D135: 450 | E135: 220606J0100MR4-WT+J06D01AS1-NX+小枕，隐形拉链 | F135: 集体
A136: 2024-05-30 | B136: 产品组装I | C136: J08B03BS1 | D136: 200 | E136: J08B02S1+J08B07BS1-LX | F136: 集体
A137: 2024-05-30 | B137: 产品组装II | C137: 230702J0200MS9 | D137: 288 | E137: 230702J0200MS9-WT（无拉头）+210709J1500MS1-NX | F137: 集体
A138: 2024-05-30 | B138: 其它 | C138: 协助配发 | D138: 0 | E138: 因子08:30-20:00其他4人17:30--20:00 | F138: 集体
A139: 2024-04-01 | B139: 产品组装III | C139: 190601J0100MGX | D139: 98 | E139: 190601J0100MGX-WT+J06D01AS1NX小枕款
A140: 2024-04-01 | B140: 产品组装I | C140: J08B06AS1 | D140: 500 | E140: J08B06AS1WT+J08B06BS1-LX
A141: 2024-04-01 | B141: 产品组装III | C141: 220606J0100MS9 | D141: 102 | E141: 220606J0100MS9-WT+J06D01AS1-NX小枕款
A142: 2024-04-02 | B142: 产品组装I | C142: J08B07BS1 | D142: 60 | E142: J08B06AS1WT+J08B06BS1-LX
A143: 2024-04-02 | B143: 产品组装II | C143: 170701J1511BS4 | D143: 169 | E143: 170701J1511GS4-WT（换吊牌）+J08B07BS1-LX
A144: 2024-04-03 | B144: 产品组装I | C144: J08B07BS1 | D144: 354 | E144: J08B06AS1WT+J08B06BS1-LX
A145: 2024-04-04 | B145: 产品组装IV | C145: 230112J0100MB7 | D145: 50 | E145: 230105JK0100MB7跨境改成日销款
A146: 2024-04-04 | B146: 产品组装III | C146: 220702J1511BS1 | D146: 175 | E146: 220702J1511BS1-WT+220702J1511B-NX
A147: 2024-04-05 | B147: 产品组装III | C147: 210703J1500BGX | D147: 128 | E147: 210703J1500BGX-WT+拆210703J1500BS1隐形拉链
A148: 2024-04-05 | B148: 产品组装III | C148: 210703J1500GGX | D148: 84 | E148: 210703J1500GGX-WT+拆210703J1500GS1隐形拉链
A149: 2024-04-05 | B149: 产品组装II | C149: J06D05AB7 | D149: 400 | E149: J06D05AB7WT+J06D05AB7L隐形拉链
A150: 2024-04-06 | B150: 产品组装II | C150: J06D05AB7 | D150: 100 | E150: J06D05AB7WT+J06D05AB7L隐形拉链
A151: 2024-04-06 | B151: 产品组装II | C151: J06D06AB7 | D151: 351 | E151: J06D06AB7WT+J06D06AB7NX
A152: 2024-04-07 | B152: 产品组装II | C152: 230709J0100MR4 | D152: 240 | E152: 230709J0100MR4-WT+210709J1500MS1-NX 外套无拉头 | F152: 集体
A153: 2024-04-07 | B153: 产品组装I | C153: 220706J1500GS9 | D153: 60 | E153: 220706J1500GS9-WT+J08B06BS1-LX | F153: 集体
A154: 2024-04-07 | B154: 产品组装I | C154: 220706J1500GB3 | D154: 30 | E154: 220706J1500GB3-WT+J08B06BS1-LX | F154: 集体
A155: 2024-04-07 | B155: 裁片 | C155: 230606J0100MB5内套 | D155: 800 | E155: 画样，拉布，裁剪等（2人） | F155: 集体
A156: 2024-04-07 | B156: 内套缝制II | C156: 230606J0100MB5内套 | D156: 40 | E156: 抱抱兔内套缝制 | F156: 集体
A157: 2024-04-08 | B157: 裁片 | C157: 230606J0100MB5内套 | D157: 2300 | E157: 裁剪 | F157: 集体
A158: 2024-04-08 | B158: 内套缝制II | C158: 230606J0100MB5内套 | D158: 464 | E158: 抱抱兔内套缝制 | F158: 集体
A159: 2024-04-09 | B159: 产品组装III | C159: 190601J0111MB4 | D159: 100 | E159: 190601J0100MB4-WT+J06D01AS1NX | F159: 集体
A160: 2024-04-09 | B160: 产品组装I | C160: 242501J0100MB3 | D160: 22 | E160: O泡午睡枕来货套PE袋，放收纳袋等 | F160: 集体
A161: 2024-04-09 | B161: 产品组装I | C161: 242501J0100MS9 | D161: 357 | E161: O泡午睡枕来货套PE袋，放收纳袋等 | F161: 集体
A162: 2024-04-09 | B162: 内套缝制II | C162: 230606J0100MB5内套 | D162: 574 | E162: 抱抱兔内套缝制 | F162: 集体
A163: 2024-04-10 | B163: 内套缝制II | C163: 230606J0100MB5内套 | D163: 581 | E163: 抱抱兔内套缝制
A164: 2024-04-10 | B164: 产品组装I | C164: 242501J0100MB3 | D164: 233 | E164: O泡午睡枕来货套PE袋，放收纳袋等
A165: 2024-04-10 | B165: 产品组装I | C165: J08B06AS1 | D165: 224 | E165: J08B06AS1WT+J08B06BS1-LX
A166: 2024-04-10 | B166: 产品组装IV | C166: 230112J0100MB7 | D166: 96 | E166: 230105JK0100MB7跨境改成日销款
A167: 2024-04-11 | B167: 产品组装II | C167: 230701J1200MS11 | D167: 46 | E167: 230702J1200MS9拆外套，换吊牌等 | F167: 集体
A168: 2024-04-11 | B168: 产品组装I | C168: J08B06AS1 | D168: 776 | E168: J08B06AS1WT+J08B06BS1-LX | F168: 集体
A169: 2024-04-11 | B169: 产品组装I | C169: J08B07BS1 | D169: 300 | E169: J08B06AS1WT+J08B06BS1-LX | F169: 集体
A170: 2024-04-11 | B170: 内套缝制II | C170: 230606J0100MB5内套 | D170: 520 | E170: 抱抱兔内套缝制 | F170: 集体
A171: 2024-04-12 | B171: 内套缝制II | C171: 230606J0100MB5内套 | D171: 138 | E171: 抱抱兔内套缝制 | F171: 集体
A172: 2024-04-12 | B172: 产品组装I | C172: J08B06BS1 | D172: 225 | E172: J08B06AS1WT+J08B06BS1-LX | F172: 集体
A173: 2024-04-12 | B173: 产品组装I | C173: J08B03BS1 | D173: 300 | E173: J08B02S1+J08B07BS1-LX | F173: 集体
A174: 2024-04-13 | B174: 产品组装IV | C174: J06D01AS1 | D174: 320 | E174: 230601JK0100MS1跨境产品更换成日销款 | F174: 集体
A175: 2024-04-13 | B175: 产品组装IV | C175: J06D01AB7 | D175: 200 | E175: 230601JK0100MB1跨境产品更换成日销款 | F175: 集体
A176: 2024-04-14 | B176: 产品组装IV | C176: J06D01AS1 | D176: 340 | E176: 230601JK0100MS1跨境产品更换成日销款 | F176: 集体
A177: 2024-04-14 | B177: 产品组装IV | C177: J06D01AB7 | D177: 86 | E177: 230601JK0100MB1跨境产品更换成日销款 | F177: 集体
A178: 2024-04-14 | B178: 产品组装I | C178: J08B02AS1 | D178: 500 | E178: J08B02S1+J08B06BS1-LX | F178: 集体
A179: 2024-04-15 | B179: 产品组装IV | C179: J06D01AS1 | D179: 78 | E179: 230601JK0100MS1跨境产品更换成日销款 | F179: 集体
A180: 2024-04-15 | B180: 产品组装III | C180: 232407J0100MB3 | D180: 322 | E180: 232407J0100MB3-WT+232407J0100MB3-LX(芯子摩擦力太大，套不好） | F180: 集体
A181: 2024-04-15 | B181: 产品组装III | C181: 220606J0100MS9 | D181: 401 | E181: 220606J0100MS9-WT+J06D01AS1-NX隐形拉链 | F181: 集体
A182: 2024-04-15 | B182: 产品组装III | C182: 220606J0100MR4 | D182: 73 | E182: 220606J0100MR4-WT+J06D01AS1-NX+小枕，隐形拉链 | F182: 集体
A183: 2024-04-15 | B183: 产品组装III | C183: 230605J0100MG10 | D183: 25 | E183: 230605J0100MG10-WT+J06D01AS1NX+小枕，隐形拉链 | F183: 集体
A184: 2024-04-16 | B184: 产品组装III | C184: 232407J0100MB3 | D184: 172 | E184: 232407J0100MB3-WT+232407J0100MB3-LX(芯子摩擦力太大，套不好）
A185: 2024-04-16 | B185: 产品组装III | C185: 220606J0100MR4 | D185: 327 | E185: 220606J0100MR4-WT+J06D01AS1-NX+小枕，隐形拉链
A186: 2024-04-16 | B186: 产品组装III | C186: 190601J0100MGX | D186: 70 | E186: 190601J0100MGX-WT+J06D01AS1NX小枕款
A187: 2024-04-16 | B187: 产品组装I | C187: 160201J0200MR4 | D187: 7 | E187: 160201J0200MR4-WT+J17B06AS9NX
A188: 2024-04-17 | B188: 产品组装II | C188: J17B12AS9 | D188: 23 | E188: J17B12AS9WT+拆220202J0200LR4
A189: 2024-04-18 | B189: 产品组装I | C189: J08B07BS1 | D189: 68 | E189: J08B06AS1WT+J08B07BS1-LX | F189: 集体
A190: 2024-04-18 | B190: 产品组装III | C190: 220606J0100MS9 | D190: 208 | E190: 220606J0100MS9-WT+J06D01AS1-NX隐形拉链 | F190: 集体
A191: 2024-04-18 | B191: 产品组装IV | C191: 230606J0100MR4 | D191: 168 | E191: 拆230606J0100MR4-05，换吊牌，洗标等 | F191: 集体
A192: 2024-04-18 | B192: 封口包装 | C192: 230606J0100MB5-NX | D192: 168 | E192: 裸心套内套封口等 | F192: 集体
A193: 2024-04-19 | B193: 产品组装III | C193: 220606J0100MS9 | D193: 83 | E193: 220606J0100MS9-WT+J06D01AS1-NX隐形拉链 | F193: 集体
A194: 2024-04-19 | B194: 产品组装II | C194: 230701J1200MS11 | D194: 108 | E194: 拆230702J1200MS9及更换标识等 | F194: 集体
A195: 2024-04-19 | B195: 产品组装I | C195: J08B06BS11 | D195: 209 | E195: J08B06BS11WT+J08B06BS1-LX | F195: 集体
A196: 2024-04-19 | B196: 产品组装I | C196: J08B07BS11 | D196: 150 | E196: J08B06BS11WT+J08B07BS1-LX | F196: 集体
A197: 2024-04-19 | B197: 产品组装I | C197: J08B07BS1 | D197: 300 | E197: J08B06AS1WT+J08B07BS1-LX软款 | F197: 集体
A198: 2024-04-19 | B198: 产品组装IV | C198: 230606J0100MR4 | D198: 154 | E198: 拆230606J0100MR4-05，换吊牌，洗标等 | F198: 集体
A199: 2024-04-19 | B199: 封口包装 | C199: 230606J0100MB5-NX | D199: 254 | E199: 裸心套内套封口等 | F199: 集体
A200: 2024-04-19 | B200: 产品组装IV | C200: 230606J0100MB5 | D200: 100 | E200: 拆230606J0100MB5-05，换吊牌，洗标等 | F200: 集体
... 5425 more rows

Sheet Sheet1 (hidden)
A2: 产品编码 | C2: 数量 | D2: 单位
A3: P06B04AS1 | B3: 外套 | C3: 63 | D3: 个
A4: P06B04CS1 | B4: 外套 | C4: 65 | D4: 个
A5: P07A25B-1 | B5: 裸芯 | C5: 450 | D5: 个
A6: P07E08BS1 | B6: 成品 | C6: 126 | D6: 个
A7: P07E07BS1 | B7: 成品 | C7: 52 | D7: 个
A8: P07A12C2 | B8: 成品 | C8: 60 | D8: 个
A9: J08B03AS1 | B9: 成品 | C9: 160 | D9: 个
A10: P06A03DS1 | B10: 成品 | C10: 145 | D10: 个
A11: P06A03CS1 | B11: 成品 | C11: 13 | D11: 个
A12: P06A03CS1就是当初更换错误的那款，外套是P06G04S1的
